Cogmind - Beta 13 @@@ ROGUE MODE // 2024.04.04 @ 16:08:49 Player: djrubbie Result: Self-destructed Performance ------------- Evolutions (3) 1500 Regions Visited (6) 1200 Robots Destroyed (69) 345 Value Destroyed (1555) 1555 Prototype IDs (27) 540 Alien Tech Used (0) 0 Bonus (400) 400 TOTAL SCORE: 5540 Bonus ------- High Alert Combat Kills 100 Aligned with FarCom 300 Cogmind --------- Core Integrity 677/700 Matter 258/300 Energy 140/140 System Corruption 0% Temperature Cool (40) Movement Core (800) Ox15 Location -7/Factory Parts ------- > --- POWER (1) -------- Light Deuterium Engine > --- PROPULSION (4) --- (None) > --- UTILITY (6) ------ High-capacity Storage Unit Improved Signal Interpreter Targeting Computer > --- WEAPON (2) ------- Pulse Rifle > --- INVENTORY (20) --- Light Deuterium Engine Improved VTOL Module Experimental Sensor Array Improved Terrain Scan Processor Hacking Suite System Shield Authchip [R/Combat] Authchip [Device] Authchip [Weapon] Pulse Rifle Ion Cannon Gauss Rifle Flak Cannon Flak Cannon Grenade Launcher Improved Grenade Launcher Improved Grenade Launcher Heavy Flail Peak State ------------ > --- POWER ------------ Light Ion Engine > --- PROPULSION ------- Flying Fortress v7 > --- UTILITY ---------- High-capacity Storage Unit Experimental Sensor Array Signal Interpreter ECM Suite > --- WEAPON ----------- Grenade Launcher Heavy Flail > --- INVENTORY -------- Weight Redist. System Seismic Detector Targeting Computer Hacking Suite System Shield Authchip [R/Combat] Authchip [R/Combat] Authchip [Device] Authchip [Weapon] Pulse Rifle Pulse Rifle Light Assault Rifle Gauss Rifle Grenade Launcher [Rating: 52] Favorites ----------- Power Light Ion Engine Engine Light Ion Engine Propulsion Light Treads Treads Light Treads Flight Unit Flying Fortress v7 Utility Signal Interpreter Device Seismic Detector Storage High-capacity Storage Unit Processor Signal Interpreter Weapon Grenade Launcher Energy Gun Medium Laser Ballistic Gun Light Assault Rifle Launcher Grenade Launcher Impact Weapon Heavy Flail Build | -11 -10 -10 -10 -9 -8 -7 ------- Run | Yrd Mat Min Exi Min Mat Fac Slots Evolved 6 | . . . . . 4 2 Power . | . . . . . . . Propulsion 2 | . . . . . 2 . Utility 4 | . . . . . 2 2 Weapon . | . . . . . . . Parts Attached 54 | 8 21 . . 2 22 1 Power 9 | 2 3 . . . 4 . Engine 9 | 2 3 . . . 4 . Core . | . . . . . . . Reactor . | . . . . . . . Propulsion 9 | 2 4 . . 1 2 . Treads 7 | 2 4 . . 1 . . Leg . | . . . . . . . Wheel . | . . . . . . . Hover . | . . . . . . . Flight 2 | . . . . . 2 . Utility 12 | 2 3 . . . 7 . Device 5 | 1 . . . . 4 . Storage 4 | 1 2 . . . 1 . Processor 3 | . 1 . . . 2 . Hackware . | . . . . . . . Protection . | . . . . . . . Artifact . | . . . . . . . Weapon 24 | 2 11 . . 1 9 1 Energy Gun 6 | 2 . . . . 3 1 Energy Cannon . | . . . . . . . Ballistic Gun 8 | . 6 . . . 2 . Ballistic Cannon . | . . . . . . . Launcher 9 | . 5 . . 1 3 . Special Weapon . | . . . . . . . Impact Weapon 1 | . . . . . 1 . Slashing Weapon . | . . . . . . . Piercing Weapon . | . . . . . . . Special Melee Weapon . | . . . . . . . Unidentified Prototypes 2 | . . . . . 2 . Parts Lost 7 | . 1 . . 1 4 1 Power . | . . . . . . . Propulsion 2 | . . . . . 1 1 Utility 1 | . . . . . 1 . Weapon 4 | . 1 . . 1 2 . Highest Loss Streak 2 | . 1 . . 1 2 1 To Critical Strikes 1 | . . . . . . 1 Average Slot Usage (%) 92 | . 99 100 100 99 57 45 Engine 13 | . 13 14 14 14 8 7 Treads 23 | . 27 28 28 28 4 . Flight 1 | . . . . . 6 6 Device 2 | . 4 . . . 4 . Storage 13 | . 14 14 14 14 9 7 Processor 11 | . 9 14 14 14 10 15 Energy Gun 1 | . 1 . . . 1 3 Ballistic Gun 12 | . 13 14 14 14 5 3 Launcher 11 | . 12 14 14 13 6 . Naked Turns . | . . . . . . . Heaviest Build 51 | 15 47 47 47 47 51 49 Greatest Support 50 | 40 40 40 40 40 50 50 Greatest Overweight (x) 6 | . 6 1 1 1 2 . Average Overweight (x) . | . . 1 1 1 . . Largest Inventory Capacity 20 | 8 20 20 20 20 20 20 Average Capacity 18 | 7 17 20 20 20 20 20 Most Carried 20 | 3 13 15 19 20 20 18 Average Carried 14 | 1 10 14 16 18 17 18 Final Capacity 20 | 8 20 20 20 20 20 20 Final Carried 19 | 1 13 15 19 19 18 18 Class Distribution -------------------- 98% | Mutant Dominant Class ---------------- Mutant | -10/Materials Mutant | -10/Mines Mutant | -10/Exiles Mutant | -9/Mines Mutant | -8/Materials Mutant | -7/Factory Resources | -11 -10 -10 -10 -9 -8 -7 ----------- Run | Yrd Mat Min Exi Min Mat Fac Matter Collected 1437 | 207 421 . . 90 712 7 Remotely . | . . . . . . . Salvage Created 1534 | 27 533 . . 55 912 7 Parts 109 | 3 32 . . 7 66 1 Haulers Intercepted 4 | . 1 . . . 3 . Recyclers Shooed 2 | . 2 . . . . . Parts Field Recycled . | . . . . . . . Retrieved Matter . | . . . . . . . Parts Self-Destructed . | . . . . . . . Prevented . | . . . . . . . Kills | -11 -10 -10 -10 -9 -8 -7 ------- Run | Yrd Mat Min Exi Min Mat Fac Combat Hostiles Destroyed 38 | . 11 . . 5 22 . Guns 10 | . 5 . . . 5 . AOE 28 | . 6 . . 5 17 . Classes Destroyed 12 | 1 8 . . 1 2 . Worker 8 | . 5 . . . 3 . Builder 3 | . . . . . 3 . Tunneler 1 | 1 . . . . . . Hauler 4 | . 1 . . . 3 . Recycler 3 | . 2 . . . 1 . Mechanic 1 | . 1 . . . . . Operator 4 | . 1 . . . 2 1 Watcher 7 | . 3 . . . 4 . Swarmer 16 | . 6 . . 3 7 . Grunt 11 | . 5 . . . 6 . Sentry 9 | . . . . 2 7 . Hunter 2 | . . . . . 2 . Best Kill Streak 8 | 1 8 . . 3 7 1 Combat Bots Only 4 | . 4 . . 3 4 . Max Kills in Single Turn 3 | 1 3 . . 2 3 1 Gunslinging . | . . . . . . . Exploded 3 | . 3 . . 2 3 . Melee . | . . . . . . . Uniques/NPCs Destroyed . | . . . . . . . Combat | -11 -10 -10 -10 -9 -8 -7 -------- Run | Yrd Mat Min Exi Min Mat Fac Hostile Shots Fired 175 | . 52 . . 14 103 6 Missed 64 | . 16 . . 2 46 . Damage Taken 2218 | . 491 . . 403 1226 98 Core 241 | . 50 . . 73 95 23 Absorbed by Shields . | . . . . . . . Regen/Repaired (Parts) 595 | . 595 . . . . . Core Remaining (%) 77 | 100 . . . 50 82 . Volleys Fired 159 | 1 53 . . 22 77 6 Largest 2 | 2 2 . . 2 2 1 Hottest 126 | 90 90 . . 50 126 63 Shots Fired 233 | 2 82 . . 40 103 6 Gun 161 | 2 70 . . 22 61 6 Cannon . | . . . . . . . Launcher 72 | . 12 . . 18 42 . Special . | . . . . . . . Kinetic 103 | . 32 . . 22 49 . Thermal 43 | 1 24 . . . 12 6 Explosive 72 | . 12 . . 18 42 . Electromagnetic 15 | 1 14 . . . . . Robot Hit Streak 11 | 1 5 . . 5 11 2 Robot Miss Streak 5 | . 5 . . 1 5 1 Penetration Max 1 | . . . . . 1 . Secondary Targets . | . . . . . . . Shots Hit Robots 106 | 1 40 . . 9 53 3 Core Hits 125 | 1 40 . . 11 72 1 Critical Kills 1 | . 1 . . . . . Critical Parts Destroyed 2 | . . . . . 2 . Critical Strikes 3 | . 1 . . . 2 . Destroy 3 | . 1 . . . 2 . Melee Attacks . | . . . . . . . Impact . | . . . . . . . Slashing . | . . . . . . . Piercing . | . . . . . . . Sneak Attacks . | . . . . . . . Combat Hostiles . | . . . . . . . Follow-up Attacks . | . . . . . . . Damage Inflicted 3893 | 25 1176 . . 348 2292 52 Guns 998 | 25 357 . . 26 538 52 Cannons . | . . . . . . . Explosions 2844 | . 770 . . 320 1754 . Melee . | . . . . . . . Ramming 51 | . 49 . . 2 . . Kinetic 557 | . 111 . . 26 420 . Thermal 371 | 12 189 . . . 118 52 Explosive 2791 | . 742 . . 320 1729 . Electromagnetic 123 | 13 85 . . . 25 . Impact . | . . . . . . . Slashing . | . . . . . . . Piercing . | . . . . . . . Highest Corruption 1 | . . . . . 1 . Average Corruption 1 | . . . . . 1 . Corruption Purged . | . . . . . . . Corruption Blocked . | . . . . . . . Effects 3 | . . . . . 3 . Message Errors 1 | . . . . . 1 . Energy Discharges 1 | . . . . . 1 . Data Loss (minor) 1 | . . . . . 1 . Overload Shots . | . . . . . . . Overflow Damage 64 | . 12 . . 15 37 . Projectiles . | . . . . . . . Explosions 64 | . 12 . . 15 37 . Melee . | . . . . . . . Knockbacks . | . . . . . . . Impact . | . . . . . . . Kinetic . | . . . . . . . Secondary . | . . . . . . . Self-Inflicted Damage 759 | . 143 . . 233 383 . Shots 27 | . 6 . . 7 14 . Rammed 10 | . 8 . . 2 . . Targets Rammed 12 | . 10 . . 2 . . Kicked . | . . . . . . . Crushed 2 | . 2 . . . . . Highest Temperature 258 | 30 214 . . 20 258 40 Average Temperature 57 | 18 83 . . 8 55 15 Received Heat Transfer 420 | . 96 . . 45 279 . Siege Activations . | . . . . . . . Robots Corrupted . | . . . . . . . Combat Hostiles . | . . . . . . . Parts Fried . | . . . . . . . Impact Corruptions . | . . . . . . . Robots Melted . | . . . . . . . Combat Hostiles . | . . . . . . . Parts Melted 1 | . 1 . . . . . Heat Transferred 938 | 37 531 . . . 259 111 Parts Sabotaged . | . . . . . . . Parts Stolen . | . . . . . . . Parts Stripped . | . . . . . . . Power Chain Reactions 1 | . 1 . . . . . Alert | -11 -10 -10 -10 -9 -8 -7 ------- Run | Yrd Mat Min Exi Min Mat Fac Peak Influence 769 | 5 189 . . 95 769 384 Initial 349 | . 3 . . . 1 349 Average 66 | . 17 . . 24 280 357 Maximum Alert Level 3 | . . . . . 3 1 Low Security (%) 87 | 100 100 100 . 100 33 . Level 1 7 | . . . . . 41 100 Level 2 2 | . . . . . 14 . Level 3 1 | . . . . . 10 . Level 4 . | . . . . . . . Level 5 . | . . . . . . . High Security . | . . . . . . . Max Security . | . . . . . . . Squads Dispatched 6 | . 2 . . . 3 1 Investigation 1 | . 1 . . . . . Extermination . | . . . . . . . Reinforcement 3 | . 1 . . . 1 1 Assault . | . . . . . . . Garrison 2 | . . . . . 2 . Intercept . | . . . . . . . Searches Triggered . | . . . . . . . Construction Impeded . | . . . . . . . Haulers Reinforced . | . . . . . . . Active Scanning Responses . | . . . . . . . Cargo Convoy Interrupts . | . . . . . . . Stealth | -11 -10 -10 -10 -9 -8 -7 --------- Run | Yrd Mat Min Exi Min Mat Fac Distress Signals 5 | . 2 . . . 3 . Communications Jammed . | . . . . . . . Distress Signals . | . . . . . . . Times Spotted 55 | . 21 . . 3 29 2 Peak Tracking Total 5 | . 5 . . 2 5 1 Tactical Retreats 2 | . . . . . 2 . Traps | -11 -10 -10 -10 -9 -8 -7 ------- Run | Yrd Mat Min Exi Min Mat Fac Traps Triggered 5 | . 4 . . . 1 . Indirectly . | . . . . . . . Trap Hack Attempts . | . . . . . . . Triggered . | . . . . . . . Disarmed . | . . . . . . . Reprogrammed . | . . . . . . . Reused . | . . . . . . . Traps Extracted . | . . . . . . . Installed . | . . . . . . . Triggered . | . . . . . . . Machines | -11 -10 -10 -10 -9 -8 -7 ---------- Run | Yrd Mat Min Exi Min Mat Fac Machines Disabled 13 | . 1 . . . 12 . Max in Single Turn 2 | . 1 . . . 2 . Machines Repaired . | . . . . . . . Machines Dismantled . | . . . . . . . Machines Sabotaged . | . . . . . . . Overloaded Fab Kills . | . . . . . . . Hacking | -11 -10 -10 -10 -9 -8 -7 --------- Run | Yrd Mat Min Exi Min Mat Fac Machines Accessed 14 | . 4 . 3 . 7 . Terminals 9 | . 2 . . . 7 . Fabricators . | . . . . . . . Repair Stations 1 | . 1 . . . . . Recycling Units 1 | . 1 . . . . . Scanalyzers . | . . . . . . . Garrison Access . | . . . . . . . Total Hacks 47 | . 16 . 18 . 13 . Successful 41 | . 14 . 18 . 9 . Failed 6 | . 2 . . . 4 . Catastrophic . | . . . . . . . Database Lockouts . | . . . . . . . Manual 1 | . . . 1 . . . Terminals 16 | . 3 . . . 13 . Fabricators . | . . . . . . . Repair Stations 12 | . 12 . . . . . Recycling Units 1 | . 1 . . . . . Scanalyzers . | . . . . . . . Garrison Access . | . . . . . . . Terminal Hacks 30 | . 3 . 18 . 9 . Record 26 | . 2 . 17 . 7 . Prototype ID Bank 1 | . . . . . 1 . Maintenance Status 1 | . . . . . 1 . Hauler Manifests 1 | . 1 . . . . . Derelict Proto ID Bank 1 | . . . 1 . . . Fabricator Hacks . | . . . . . . . Repair Station Hacks 10 | . 10 . . . . . Scan Component 5 | . 5 . . . . . Repair 5 | . 5 . . . . . Recycling Unit Hacks 1 | . 1 . . . . . Report Inventory 1 | . 1 . . . . . Scanalyzer . | . . . . . . . Garrison Access Hacks . | . . . . . . . Unauthorized Hacks . | . . . . . . . Terminals . | . . . . . . . Fabricators . | . . . . . . . Repair Stations . | . . . . . . . Recycling Units . | . . . . . . . Scanalyzers . | . . . . . . . Garrison Access . | . . . . . . . Data Cores Recovered 1 | . . . . . 1 . Used . | . . . . . . . Hacking Detections 4 | . 2 . . . 2 . Full Trace Events . | . . . . . . . Feedback Events . | . . . . . . . Feedback Blocked . | . . . . . . . Robot Schematics Acquired . | . . . . . . . Robots Built . | . . . . . . . Authchips . | . . . . . . . Time . | . . . . . . . Total Robot Build Rating . | . . . . . . . Part Schematics Acquired . | . . . . . . . Parts Built . | . . . . . . . Authchips . | . . . . . . . Time . | . . . . . . . Total Part Build Rating . | . . . . . . . Parts Repaired 5 | . 5 . . . . . Time 130 | . 130 . . . . . Parts Recycled . | . . . . . . . Recycled Matter . | . . . . . . . Retrieved Matter . | . . . . . . . Retrieved Components . | . . . . . . . Parts Scanalyzed . | . . . . . . . Part Schematics Acquired . | . . . . . . . Parts Damaged . | . . . . . . . Bothacking | -11 -10 -10 -10 -9 -8 -7 ------------ Run | Yrd Mat Min Exi Min Mat Fac Used RIF Installer . | . . . . . . . Robots Hacked . | . . . . . . . Non-combat . | . . . . . . . Combat . | . . . . . . . Robot Hacks Applied . | . . . . . . . Relay Couplers Released . | . . . . . . . Fabnet Peak Effective % . | . . . . . . . Robots Rewired . | . . . . . . . Allies Hacked . | . . . . . . . Hacks Repelled . | . . . . . . . Allies | -11 -10 -10 -10 -9 -8 -7 -------- Run | Yrd Mat Min Exi Min Mat Fac Total Allies . | . . . . . . . Largest Group . | . . . . . . . Highest-Rated Group . | . . . . . . . Highest-Rated Ally . | . . . . . . . Total Orders . | . . . . . . . Ally Attacks . | . . . . . . . Total Damage . | . . . . . . . Kills . | . . . . . . . Allies Corrupted . | . . . . . . . Allies Melted . | . . . . . . . Intel | -11 -10 -10 -10 -9 -8 -7 ------- Run | Yrd Mat Min Exi Min Mat Fac Robot Analysis Total . | . . . . . . . Derelict Logs Recovered 2 | . . . . 2 . . Drone Launches . | . . . . . . . Drone Recoveries . | . . . . . . . Exploration | -11 -10 -10 -10 -9 -8 -7 ------------- Run | Yrd Mat Min Exi Min Mat Fac Turns Passed 9789 | 89 4922 112 664 2360 1563 79 Spaces Moved 4954 | 48 2332 46 275 902 1328 23 Core 9 | 7 2 . . . . . Treads 3676 | 41 2330 46 275 902 82 . Legs . | . . . . . . . Wheels . | . . . . . . . Hover . | . . . . . . . Flight 1269 | . . . . . 1246 23 Fastest Speed 50 | 50 160 240 240 240 50 50 Average Speed 171 | 143 195 240 240 240 68 50 Slowest Speed 350 | 160 350 240 240 240 320 50 Overloaded Moves . | . . . . . . . Propulsion Burnouts . | . . . . . . . Robots Hopped 5 | . . . . . 5 . Cave-ins Triggered . | . . . . . . . Exploration Rate (%) 50 | 4 100 8 61 100 77 1 Regions Visited 6 Branch Regions 3 Pre-discovered Areas 1 | . . . . 1 . . Known Exits Taken 5 | . 1 1 1 1 1 . Unknown Exits Taken 1 | 1 . . . . . . Scrap Searched 2 | . . . . 2 . . Spaces Dug 56 | . . . . 56 . . Terrain Destroyed 423 | . 81 . . 116 226 . Melee . | . . . . . . . Projectile 1 | . . . . . 1 . AOE 422 | . 81 . . 116 225 . Terrain Rammed . | . . . . . . . Walls Destroyed . | . . . . . . . Machines Disabled . | . . . . . . . Actions | -11 -10 -10 -10 -9 -8 -7 --------- Run | Yrd Mat Min Exi Min Mat Fac Total 6025 | 66 2601 49 281 1060 1884 84 Wait 743 | . 152 . . 128 409 54 Move 4939 | 47 2331 45 274 901 1318 23 Hop 4 | . . . . . 4 . Pick Up 74 | 9 29 3 4 3 26 . Fast Attach . | . . . . . . . Attach 37 | 7 12 . . 1 17 . Detach 8 | . . . . . 8 . Swap 17 | 1 9 . . 1 5 1 Drop 32 | 1 5 1 3 2 20 . Fire 159 | 1 53 . . 22 77 6 Melee . | . . . . . . . Ram . | . . . . . . . Kick . | . . . . . . . Crush 12 | . 10 . . 2 . . Escape Stasis . | . . . . . . . Rewire . | . . . . . . . Trap . | . . . . . . . Miscellaneous . | . . . . . . . Route ------- -11/Scrapyard -10/Materials (discovered 6 exits: *Mat x3 / *Min x2 / *Sub) -10/Mines -10/Exiles -9/Mines (discovered 2 exits: *Mat x2) -8/Materials (discovered 2 exits: *Fac x2) -7/Factory History --------- Turn | Location | Event 27 | -11/Scrapyard | Discovered new exit (range 14) 90 | -11/Scrapyard | Entered Materials 280 | -10/Materials | Discovered new exit (range 12) 313 | -10/Materials | Build established: Mutant 610 | -10/Materials | Discovered new exit (range 15) 765 | -10/Materials | Discovered new exit (range 15) 958 | -10/Materials | Discovered new exit (range 4) 1520 | -10/Materials | Discovered new exit (range 5) 1526 | -10/Materials | Identified exit to Mines 1657 | -10/Materials | Identified exit to Materials 1985 | -10/Materials | Repaired Lgt. Assault Rifle 2012 | -10/Materials | Repaired Lgt. Treads 2040 | -10/Materials | Repaired Lgt. Treads 2069 | -10/Materials | Repaired Lgt. Assault Rifle 2498 | -10/Materials | Repaired Hcp. Storage Unit 3145 | -10/Materials | Discovered new exit (range 5) 3154 | -10/Materials | Identified exit to Subcaves 5012 | -10/Materials | Entered Mines 5114 | -10/Mines | Deemed a non-threat by the Exiles lab entrance 5114 | -10/Mines | Discovered new exit (range 5) 5122 | -10/Mines | Identified exit to Exiles 5124 | -10/Mines | Entered Exiles 5184 | -10/Exiles | Met 8R-AWN 5218 | -10/Exiles | Met EX-HEX 5304 | -10/Exiles | Met EX-BIN 5331 | -10/Exiles | Aligned with FarCom system 5333 | -10/Exiles | Given EX-Vault access code 5439 | -10/Exiles | Opened EX-Vault 5448 | -10/Exiles | Found Prototype Processor 5512 | -10/Exiles | Found YOLO Cannon 5525 | -10/Exiles | Found Flying Fortress v7 5574 | -10/Exiles | Warned to stay clear of 0b10 Research branches 5641 | -10/Exiles | Met EX-DEC 5756 | -10/Exiles | Discovered new exit (range 14) 5783 | -10/Exiles | Identified exit to Mines 5788 | -10/Exiles | Left Exiles lab with Flying Fortress v7 5788 | -10/Exiles | Entered Mines 5811 | -9/Mines | Learned location of 1 exit from Proximity Caves 5864 | -9/Mines | Learned location of Zion (-7) 6556 | -9/Mines | Found a damaged Exp. Sensor Array with a note attached 6561 | -9/Mines | Found Prototype Device 6776 | -9/Mines | Discovered new exit (range 7) 6790 | -9/Mines | Discovered new exit (range 7) 6790 | -9/Mines | Identified exit to Materials 6816 | -9/Mines | Received a Rocket Launcher from a helpful Derelict 7265 | -9/Mines | Joined a pair of Derelicts in attacking an 0b10 outpost 8148 | -9/Mines | Entered Materials 8148 | -8/Materials | Evolved 4 slots: Propulsion x2, Utility x2 8873 | -8/Materials | Garrison activated, responded to threat 9009 | -8/Materials | Identified Exp. Sensor Array 9326 | -8/Materials | Garrison activated, responded to threat 9435 | -8/Materials | Discovered new exit (range 4) 9437 | -8/Materials | Identified exit to Factory 9584 | -8/Materials | Discovered exit to Factory (range 16) 9711 | -8/Materials | Entered Factory 9711 | -7/Factory | Evolved 2 slots: Utility x2 9790 | -7/Factory | Self-destructed Last Messages --------------- Connecting with Scanalyzer... Connecting with Terminal... K-01 Serf cleans the Nuclear Reactor. Connecting with Repair Station... 7KNKZ&4O|ILFVPPKG%A9:EN79KZD|ETWC U PARAMETERS=UTILITY+2 LOCATION=FACTORY GOAL=ESCAPE Receiving FarCom transmissions... ALERT: All DSF locations entering lockdown mode. O-16 Technician: "IFF HANDSHAKE FAILED. SECURING TERMINAL." ALERT: Hostiles spotted, dispatching reinforcements to Terminal F008. O-16 Technician destroyed. Acquired 7 matter. Slug penetrates Door. Critical hit (Destroy). Flying Fortress v7 destroyed. Penetrated by Slug. Map ----- +----------------------------------------------------+ | ?????????????????????????????????????? | | ?????????????????????????????????????? | | ?????????????????????????????????????? | | ?????????????????????????????????????? | | ?????????????????????????????????????? | | ?????????????????????????????????????? | | ?????????????????????????????????????? | | ?????????????????????????????????????? | | ?????????????????????????????????????? | | ?????????????????????????????????????? | | ?????????????????????????????????????? | | ?????????????????????????????????????? | | ?????????????????????????????????????? | | ?????????????????????????????????????? | | ?????????????????????????????????????? | | ?????????????????????????????????????? | | ????????????##############???????????? | | ????????????# #???????????? | | ????????????# #???????????? | | ????????????# #???????????? | | ????????????# #???????????? | | ????????????# #???????????? | | ????????????# #???????????? | | ????????????# #???????????? | | ????????????# #???????????? | | ??###########@ #???????????? | | # # #???????????? | | # ] T + #???????????? | | # # +???????????? | | ? """"""""" #;##+#########???????????? | | ??? # / #????????????????? | | ???"""""""" #h #????????????????? | | ??? + #????????????????? | | ????""""""" # #????????????????? | | ????? # #????????????????? | | ??????""""" ##### ###????????????????? | | ????????? ????# #??????????????????? | | ??????????" ????# #??????????????????? | | ?????????? ????# #??????????????????? | | ???????????/????# #??????????????????? | | ??????????? ????# #??????????????????? | | ??????????? ????? #??????????????????? | | ??????????? ????? #??????????????????? | | ????????????????? ???????????????????? | | ?????????????????#???????????????????? | | ?????????????????????????????????????? | | ?????????????????????????????????????? | | ?????????????????????????????????????? | | ?????????????????????????????????????? | | ?????????????????????????????????????? | +----------------------------------------------------+ Best States ------------- Heat Dissipation 34 Energy Generation 14 Energy Capacity 250 Matter Stores 300 Matter Capacity 300 Sight Range 16 Robot Scan Range 20 Terrain Scan Density 10 ECM Strength 1 Evasion (%) 60 Targeting Accuracy 5 Recoil Reduction 2 Authchip Count 4 Item Schematics ----------------- None Robot Schematics ------------------ None Fabricated ------------ Nothing Alien Tech Used ----------------- None Achievements -------------- Serviceable Loadout Shopping List Challenges ------------ None Game ------ Seed IonAblativeWheel Manual? 0 Play Time 01:23:56 Cumulative 9.9 hours Start 2024.04.04 @ 14:36:56 End 2024.04.04 @ 16:08:49 Sessions 1 Manual Loads 0 Difficulty Rogue Special Mode None Game No. 12 Rogue 12 Adventurer 0 Explorer 0 Win Type - Total 0 Types 0/0/0/0/0/0/0/0/0 Lore% 11 Gallery% 10 Achievement% 11 Wizard Run 0 Options --------- Layout 1 ASCII 0 Keyboard 0 Movement Mouse Keybinds 0 Fullscreen 0 Font 28/SmallcapsGlow Map View 50x35 Zoom Use 0% Tactical HUD 0 Map Filters NONE Filters NONE Steam 1 RUN: 419740f8-5a5c-4f05-9fe0-08e5b5c865e0